[Event "Live Chess"]
[Site "Chess.com"]
[Date "2024.06.01"]
[Round "-"]
[White "Frankie_Badacsonyi"]
[Black "jimwad"]
[Result "1-0"]
[WhiteElo "2435"]
[BlackElo "1241"]
[TimeControl "300"]
[EndTime "10:41:04 PDT"]
[Termination "Frankie_Badacsonyi won by resignation"]

1. Nf3 {[%clk 0:04:57.6]} 1... d5 {[%clk 0:04:58.5]} 2. g3 {[%clk 0:04:57.5]}
2... Nc6 {[%clk 0:04:57.2]} 3. d4 {[%clk 0:04:56.1]} 3... Nf6 {[%clk 0:04:54.6]}
4. Bg2 {[%clk 0:04:54.7]} 4... Bf5 {[%clk 0:04:51.7]} 5. O-O {[%clk 0:04:54.1]}
5... e6 {[%clk 0:04:50.7]} 6. a3 {[%clk 0:04:48.6]} 6... Be7 {[%clk 0:04:49.2]}
7. c4 {[%clk 0:04:39.9]} 7... dxc4 {[%clk 0:04:38.8]} 8. Qa4 {[%clk 0:04:35.4]}
8... O-O {[%clk 0:04:33.9]} 9. Qxc4 {[%clk 0:04:30.9]} 9... Na5 {[%clk
0:04:19.5]} 10. Qa4 {[%clk 0:04:26.2]} 10... Nc6 {[%clk 0:04:08.1]} 11. Rd1
{[%clk 0:04:20.9]} 11... a6 {[%clk 0:04:02.9]} 12. Nc3 {[%clk 0:04:18.6]} 12...
b5 {[%clk 0:04:00]} 13. Qb3 {[%clk 0:04:16]} 13... Na5 {[%clk 0:03:56.9]} 14.
Qa2 {[%clk 0:04:12]} 14... Bc2 {[%clk 0:03:45.4]} 15. Re1 {[%clk 0:03:47.3]}
15... Nb3 {[%clk 0:03:35.8]} 16. Bf4 {[%clk 0:03:39.6]} 16... Nxa1 {[%clk
0:03:31.5]} 17. Qxa1 {[%clk 0:03:39.5]} 17... Bd6 {[%clk 0:03:16.6]} 18. Ne5
{[%clk 0:03:32.3]} 18... Rc8 {[%clk 0:03:05.6]} 19. Qc1 {[%clk 0:03:27.9]} 19...
Bb3 {[%clk 0:03:01.2]} 20. Bb7 {[%clk 0:03:04.9]} 20... Bxe5 {[%clk 0:02:42.2]}
21. dxe5 {[%clk 0:02:57.3]} 21... Nd5 {[%clk 0:02:34.8]} 22. Bxc8 {[%clk
0:02:56.4]} 22... Qxc8 {[%clk 0:02:33.7]} 23. e4 {[%clk 0:02:51.1]} 23... Nxc3
{[%clk 0:02:31.7]} 24. Qxc3 {[%clk 0:02:51]} 24... Bc4 {[%clk 0:01:58.7]} 25. b3
{[%clk 0:02:43.9]} 25... Bxb3 {[%clk 0:01:55.7]} 26. Qxb3 {[%clk 0:02:43.8]}
26... c5 {[%clk 0:01:54.8]} 27. Be3 {[%clk 0:02:32.8]} 27... c4 {[%clk
0:01:53.6]} 28. Qc3 {[%clk 0:02:31.5]} 28... Rd8 {[%clk 0:01:52]} 29. Rc1 {[%clk
0:01:55.4]} 29... Rd3 {[%clk 0:01:49.9]} 30. Qxd3 {[%clk 0:01:54]} 1-0

[Event "Live Chess"]
[Site "Chess.com"]
[Date "2024.06.01"]
[Round "-"]
[White "updatedopenings2024"]
[Black "MellowAesthetic"]
[Result "1-0"]
[WhiteElo "1863"]
[BlackElo "2055"]
[TimeControl "300"]
[EndTime "10:41:08 PDT"]
[Termination "updatedopenings2024 won by resignation"]

1. e4 {[%clk 0:04:57.6]} 1... c5 {[%clk 0:04:58.8]} 2. Nf3 {[%clk 0:04:56.9]}
2... d6 {[%clk 0:04:57.5]} 3. Bb5+ {[%clk 0:04:56.6]} 3... Bd7 {[%clk 0:04:56]}
4. Bxd7+ {[%clk 0:04:55.9]} 4... Qxd7 {[%clk 0:04:55.9]} 5. O-O {[%clk
0:04:55.8]} 5... Nc6 {[%clk 0:04:53.3]} 6. Re1 {[%clk 0:04:55.7]} 6... Nf6
{[%clk 0:04:50.4]} 7. c3 {[%clk 0:04:55.6]} 7... e6 {[%clk 0:04:46.8]} 8. d4
{[%clk 0:04:55.5]} 8... cxd4 {[%clk 0:04:46.2]} 9. cxd4 {[%clk 0:04:55.4]} 9...
d5 {[%clk 0:04:44.5]} 10. e5 {[%clk 0:04:54.8]} 10... Ne4 {[%clk 0:04:43.9]} 11.
a3 {[%clk 0:04:54.7]} 11... Be7 {[%clk 0:04:41.9]} 12. Qd3 {[%clk 0:04:54.4]}
12... O-O {[%clk 0:04:36.3]} 13. Nbd2 {[%clk 0:04:54.3]} 13... Nxd2 {[%clk
0:04:24.1]} 14. Bxd2 {[%clk 0:04:54.2]} 14... b5 {[%clk 0:03:46.7]} 15. h4
{[%clk 0:04:54.1]} 15... a5 {[%clk 0:02:49.8]} 16. Bg5 {[%clk 0:04:46.8]} 16...
Rab8 {[%clk 0:02:15.2]} 17. Rac1 {[%clk 0:04:40.1]} 17... Rfc8 {[%clk
0:02:04.2]} 18. Bxe7 {[%clk 0:04:34.4]} 18... Nxe7 {[%clk 0:01:41.1]} 19. Ng5
{[%clk 0:04:34.3]} 19... g6 {[%clk 0:01:37.2]} 20. h5 {[%clk 0:04:32]} 20... Rc6
{[%clk 0:01:22.2]} 21. hxg6 {[%clk 0:04:30.2]} 21... fxg6 {[%clk 0:00:45.8]} 22.
Qh3 {[%clk 0:04:26.5]} 22... Nf5 {[%clk 0:00:44.8]} 23. Rxc6 {[%clk 0:04:24.7]}
1-0

[Event "Live Chess"]
[Site "Chess.com"]
[Date "2024.06.01"]
[Round "-"]
[White "StoreySniper"]
[Black "Mikhail_Golubev"]
[Result "1-0"]
[WhiteElo "2558"]
[BlackElo "2604"]
[TimeControl "300"]
[EndTime "10:41:13 PDT"]
[Termination "StoreySniper won by resignation"]

1. c4 {[%clk 0:04:57.5]} 1... g6 {[%clk 0:04:58.4]} 2. g3 {[%clk 0:04:57]} 2...
Bg7 {[%clk 0:04:57.5]} 3. Bg2 {[%clk 0:04:56.7]} 3... e5 {[%clk 0:04:57]} 4. Nc3
{[%clk 0:04:56.1]} 4... Nc6 {[%clk 0:04:56.2]} 5. d3 {[%clk 0:04:53.6]} 5... d6
{[%clk 0:04:53.4]} 6. Nf3 {[%clk 0:04:47.8]} 6... f5 {[%clk 0:04:51.5]} 7. h4
{[%clk 0:04:44]} 7... h6 {[%clk 0:04:49]} 8. Nd5 {[%clk 0:04:40.8]} 8... Nce7
{[%clk 0:04:43.8]} 9. Qb3 {[%clk 0:04:37.7]} 9... Nxd5 {[%clk 0:04:41.3]} 10.
cxd5 {[%clk 0:04:36.8]} 10... Ne7 {[%clk 0:04:40.5]} 11. Nd2 {[%clk 0:04:35.7]}
11... O-O {[%clk 0:04:38.8]} 12. Nc4 {[%clk 0:04:27.2]} 12... Kh8 {[%clk
0:04:06.7]} 13. Bd2 {[%clk 0:04:26]} 13... b6 {[%clk 0:04:00.7]} 14. Bc3 {[%clk
0:04:15.7]} 14... a5 {[%clk 0:03:53.2]} 15. Qc2 {[%clk 0:04:04.9]} 15... f4
{[%clk 0:03:22]} 16. O-O-O {[%clk 0:03:59.2]} 16... Bb7 {[%clk 0:03:11.7]} 17.
e4 {[%clk 0:03:58.1]} 17... fxe3 {[%clk 0:02:48.4]} 18. Nxe3 {[%clk 0:03:52.2]}
18... Nf5 {[%clk 0:02:38]} 19. Be4 {[%clk 0:03:43.1]} 19... Nd4 {[%clk
0:02:20.1]} 20. Qd2 {[%clk 0:03:29.6]} 20... Qe8 {[%clk 0:02:13.3]} 21. h5
{[%clk 0:03:19.1]} 21... g5 {[%clk 0:02:09.6]} 22. Bxd4 {[%clk 0:03:16.4]} 22...
exd4 {[%clk 0:02:08.1]} 23. Nf5 {[%clk 0:03:15.7]} 23... Bxd5 {[%clk 0:01:49.1]}
24. Bxd5 {[%clk 0:03:02.8]} 24... Rxf5 {[%clk 0:01:47.4]} 25. Rde1 {[%clk
0:02:53.1]} 25... Qf8 {[%clk 0:01:38.3]} 26. Bxa8 {[%clk 0:02:51.2]} 26... Rxf2
{[%clk 0:01:30.1]} 27. Qxf2 {[%clk 0:02:21.5]} 27... Qxf2 {[%clk 0:01:30]} 28.
Rhf1 {[%clk 0:02:19.9]} 28... Qxg3 {[%clk 0:01:18.9]} 29. Re8+ {[%clk
0:02:18.4]} 29... Bf8 {[%clk 0:01:17.9]} 30. Rexf8+ {[%clk 0:02:14]} 1-0

[Event "Live Chess"]
[Site "Chess.com"]
[Date "2024.06.01"]
[Round "-"]
[White "viktor_forever1994"]
[Black "NottheBishopSacrifice"]
[Result "0-1"]
[WhiteElo "1392"]
[BlackElo "2219"]
[TimeControl "300"]
[EndTime "10:41:22 PDT"]
[Termination "NottheBishopSacrifice won on time"]

1. e4 {[%clk 0:04:58]} 1... c6 {[%clk 0:04:59.3]} 2. Nf3 {[%clk 0:04:56.9]} 2...
d5 {[%clk 0:04:59.2]} 3. exd5 {[%clk 0:04:56.4]} 3... cxd5 {[%clk 0:04:58.3]} 4.
d4 {[%clk 0:04:55.9]} 4... Nc6 {[%clk 0:04:57.6]} 5. Nc3 {[%clk 0:04:54.2]} 5...
Bg4 {[%clk 0:04:57]} 6. Bb5 {[%clk 0:04:51.7]} 6... e6 {[%clk 0:04:56.4]} 7. O-O
{[%clk 0:04:49.6]} 7... Bd6 {[%clk 0:04:56]} 8. h3 {[%clk 0:04:47.6]} 8... Bxf3
{[%clk 0:04:52.2]} 9. Qxf3 {[%clk 0:04:45.1]} 9... Ne7 {[%clk 0:04:51.9]} 10.
Re1 {[%clk 0:04:39.2]} 10... O-O {[%clk 0:04:49.9]} 11. Bg5 {[%clk 0:04:30.4]}
11... Nxd4 {[%clk 0:04:48.7]} 12. Qg4 {[%clk 0:03:33.6]} 12... f5 {[%clk
0:04:43.8]} 13. Qxd4 {[%clk 0:03:24.7]} 13... h6 {[%clk 0:04:34.1]} 14. Bf4
{[%clk 0:03:05.4]} 14... Bxf4 {[%clk 0:04:28.3]} 15. Qxf4 {[%clk 0:03:05.3]}
15... Rf6 {[%clk 0:04:27.7]} 16. Rad1 {[%clk 0:02:54.8]} 16... Ng6 {[%clk
0:04:27.2]} 17. Qf3 {[%clk 0:02:45.7]} 17... Qb6 {[%clk 0:04:25.8]} 18. b3
{[%clk 0:02:14.8]} 18... a6 {[%clk 0:04:21.5]} 19. Bd3 {[%clk 0:01:56.6]} 19...
Rc8 {[%clk 0:04:20]} 20. Ne2 {[%clk 0:01:49]} 20... Ne5 {[%clk 0:04:18.4]} 21.
Qe3 {[%clk 0:01:43.3]} 21... Qd6 {[%clk 0:04:13.5]} 22. Nd4 {[%clk 0:01:37.2]}
22... Nxd3 {[%clk 0:04:12]} 23. Qxd3 {[%clk 0:01:29.4]} 23... e5 {[%clk
0:04:11.1]} 24. Nxf5 {[%clk 0:01:24.8]} 24... Qd7 {[%clk 0:04:10.4]} 25. Ne3
{[%clk 0:01:06.7]} 25... d4 {[%clk 0:04:08.7]} 26. Nc4 {[%clk 0:01:05]} 26...
Rcf8 {[%clk 0:04:06.7]} 27. Rf1 {[%clk 0:01:00.2]} 27... Qd5 {[%clk 0:04:04.3]}
28. Rde1 {[%clk 0:00:56.2]} 28... Rf5 {[%clk 0:04:01.2]} 29. Qe4 {[%clk
0:00:49.2]} 29... Qc5 {[%clk 0:03:54.2]} 30. a4 {[%clk 0:00:42.7]} 30... b5
{[%clk 0:03:50.9]} 31. axb5 {[%clk 0:00:40.5]} 31... axb5 {[%clk 0:03:50.8]} 32.
Nxe5 {[%clk 0:00:29.8]} 32... Rf4 {[%clk 0:03:49.7]} 33. Qd3 {[%clk 0:00:21]}
33... b4 {[%clk 0:03:45.7]} 34. Ng6 {[%clk 0:00:19.5]} 34... Qg5 {[%clk
0:03:42.4]} 35. Nxf4 {[%clk 0:00:17.8]} 35... Qxf4 {[%clk 0:03:42.3]} 36. Qe4
{[%clk 0:00:14.2]} 36... Qf6 {[%clk 0:03:41.7]} 37. Rd1 {[%clk 0:00:10.5]} 37...
Rd8 {[%clk 0:03:38.8]} 38. Qg4 {[%clk 0:00:08.5]} 38... Kh8 {[%clk 0:03:37]} 39.
Qe4 {[%clk 0:00:07.1]} 39... Kg8 {[%clk 0:03:35.2]} 40. Qg4 {[%clk 0:00:06.2]}
40... h5 {[%clk 0:03:34.8]} 41. Qg3 {[%clk 0:00:05]} 41... h4 {[%clk 0:03:33.4]}
42. Qg4 {[%clk 0:00:03.4]} 42... Rd5 {[%clk 0:03:30.3]} 43. Qf3 {[%clk
0:00:02.1]} 43... Rf5 {[%clk 0:03:28.8]} 44. Qd3 {[%clk 0:00:00.7]} 44... Rf4
{[%clk 0:03:25.4]} 0-1

[Event "Live Chess"]
[Site "Chess.com"]
[Date "2024.06.01"]
[Round "-"]
[White "ProfPoisson"]
[Black "TC2304"]
[Result "0-1"]
[WhiteElo "1241"]
[BlackElo "2333"]
[TimeControl "300"]
[EndTime "10:41:42 PDT"]
[Termination "TC2304 won by checkmate"]

1. e4 {[%clk 0:04:53.5]} 1... a5 {[%clk 0:04:59.2]} 2. d4 {[%clk 0:04:50.3]}
2... a4 {[%clk 0:04:58.8]} 3. Nf3 {[%clk 0:04:47.2]} 3... e6 {[%clk 0:04:58.4]}
4. Be2 {[%clk 0:04:39.5]} 4... d5 {[%clk 0:04:57.8]} 5. e5 {[%clk 0:04:36.9]}
5... c5 {[%clk 0:04:56]} 6. c3 {[%clk 0:04:31.2]} 6... Nc6 {[%clk 0:04:55.2]} 7.
O-O {[%clk 0:04:28.3]} 7... Nge7 {[%clk 0:04:54.8]} 8. dxc5 {[%clk 0:04:19.8]}
8... Nf5 {[%clk 0:04:53.9]} 9. Bb5 {[%clk 0:04:16.1]} 9... Bxc5 {[%clk
0:04:52.7]} 10. b4 {[%clk 0:04:06.8]} 10... axb3 {[%clk 0:04:50.4]} 11. Qxb3
{[%clk 0:04:04.1]} 11... O-O {[%clk 0:04:49]} 12. a4 {[%clk 0:03:55.4]} 12...
Nh4 {[%clk 0:04:19.8]} 13. Bg5 {[%clk 0:03:49.8]} 13... Nxf3+ {[%clk 0:04:18.6]}
14. gxf3 {[%clk 0:03:39.5]} 14... Qxg5+ {[%clk 0:04:17.1]} 15. Kh1 {[%clk
0:03:38.1]} 15... Nxe5 {[%clk 0:04:15.4]} 16. Rg1 {[%clk 0:03:36.5]} 16... Qf4
{[%clk 0:04:11.9]} 17. Na3 {[%clk 0:03:14.3]} 17... Nxf3 {[%clk 0:04:03]} 18.
Rg3 {[%clk 0:02:54.8]} 18... Bxf2 {[%clk 0:04:00]} 19. Qc2 {[%clk 0:02:37.8]}
19... Bxg3 {[%clk 0:03:55.6]} 20. Rf1 {[%clk 0:02:36.1]} 20... Bxh2 {[%clk
0:03:42.7]} 21. Bd3 {[%clk 0:02:26.4]} 21... Qh4 {[%clk 0:03:18.6]} 22. Bxh7+
{[%clk 0:02:11.7]} 22... Qxh7 {[%clk 0:03:16.4]} 23. Qxh7+ {[%clk 0:02:03]}
23... Kxh7 {[%clk 0:03:16.3]} 24. Rxf3 {[%clk 0:02:01]} 24... Be5 {[%clk
0:03:14.9]} 25. Nc2 {[%clk 0:01:56]} 25... Rxa4 {[%clk 0:03:13.6]} 26. c4 {[%clk
0:01:54.3]} 26... Rxc4 {[%clk 0:03:12.4]} 27. Ne3 {[%clk 0:01:52.9]} 27... Rc3
{[%clk 0:03:10.5]} 28. Rh3+ {[%clk 0:01:49.6]} 28... Kg8 {[%clk 0:03:09.7]} 29.
Rh8+ {[%clk 0:01:41.2]} 29... Kxh8 {[%clk 0:03:08.2]} 30. Ng2 {[%clk 0:01:38.2]}
30... d4 {[%clk 0:03:06.2]} 31. Nh4 {[%clk 0:01:34.9]} 31... b5 {[%clk
0:03:03.8]} 32. Ng6+ {[%clk 0:01:30.1]} 32... fxg6 {[%clk 0:03:03.7]} 33. Kg2
{[%clk 0:01:26.7]} 33... Bb7+ {[%clk 0:02:59.9]} 34. Kg1 {[%clk 0:01:24]} 34...
Rc1# {[%clk 0:02:57.3]} 0-1

[Event "Live Chess"]
[Site "Chess.com"]
[Date "2024.06.01"]
[Round "-"]
[White "booktrunk"]
[Black "RuslanChessN"]
[Result "0-1"]
[WhiteElo "1399"]
[BlackElo "1944"]
[TimeControl "300"]
[EndTime "10:41:52 PDT"]
[Termination "RuslanChessN won by resignation"]

1. d4 {[%clk 0:04:52.3]} 1... d5 {[%clk 0:04:57.8]} 2. Nc3 {[%clk 0:04:48.5]}
2... Bf5 {[%clk 0:04:55]} 3. Bf4 {[%clk 0:04:43.7]} 3... e6 {[%clk 0:04:53.9]}
4. Nb5 {[%clk 0:04:30.1]} 4... Na6 {[%clk 0:04:43.1]} 5. e3 {[%clk 0:04:28.7]}
5... c5 {[%clk 0:04:40.6]} 6. dxc5 {[%clk 0:04:25.1]} 6... Bxc5 {[%clk
0:04:38.2]} 7. c3 {[%clk 0:04:24]} 7... Nf6 {[%clk 0:04:30.7]} 8. Bd3 {[%clk
0:04:16]} 8... Bg6 {[%clk 0:04:26.1]} 9. Bxg6 {[%clk 0:04:14]} 9... hxg6 {[%clk
0:04:24.9]} 10. Ne2 {[%clk 0:04:11.7]} 10... Qb6 {[%clk 0:04:19.5]} 11. a4
{[%clk 0:04:08.9]} 11... Rc8 {[%clk 0:04:16]} 12. O-O {[%clk 0:04:05.4]} 12...
Nb8 {[%clk 0:04:00.2]} 13. Ned4 {[%clk 0:04:03.2]} 13... Nbd7 {[%clk 0:03:47.1]}
14. Nb3 {[%clk 0:03:59.9]} 14... Be7 {[%clk 0:03:42.5]} 15. Bg3 {[%clk
0:03:55.8]} 15... Ne4 {[%clk 0:03:34.9]} 16. Nd2 {[%clk 0:03:27.2]} 16... Nxg3
{[%clk 0:03:32.3]} 17. fxg3 {[%clk 0:03:25.2]} 17... a6 {[%clk 0:03:22.5]} 18.
Nd4 {[%clk 0:03:22.3]} 18... Qxb2 {[%clk 0:03:20.9]} 19. Rb1 {[%clk 0:03:18]}
19... Qxc3 {[%clk 0:03:19.8]} 20. Rc1 {[%clk 0:03:13.4]} 20... Qxe3+ {[%clk
0:03:16.3]} 21. Kh1 {[%clk 0:03:07.2]} 21... Rxc1 {[%clk 0:03:12.5]} 22. Qxc1
{[%clk 0:03:04.7]} 22... Qxd4 {[%clk 0:03:11.3]} 23. Qc8+ {[%clk 0:03:02.8]}
23... Bd8 {[%clk 0:03:10.3]} 24. Qxb7 {[%clk 0:03:01.6]} 0-1

[Event "Live Chess"]
[Site "Chess.com"]
[Date "2024.06.01"]
[Round "-"]
[White "SirGerhard"]
[Black "MagnersCarlsberg2870"]
[Result "1-0"]
[WhiteElo "2771"]
[BlackElo "1886"]
[TimeControl "300"]
[EndTime "10:41:58 PDT"]
[Termination "SirGerhard won by resignation"]

1. d4 {[%clk 0:04:57.3]} 1... Nf6 {[%clk 0:04:58.6]} 2. Bg5 {[%clk 0:04:56]}
2... d5 {[%clk 0:04:54.1]} 3. e3 {[%clk 0:04:54.8]} 3... Nbd7 {[%clk 0:04:53]}
4. Nf3 {[%clk 0:04:52.3]} 4... h6 {[%clk 0:04:51.9]} 5. Bh4 {[%clk 0:04:51.3]}
5... c5 {[%clk 0:04:51]} 6. c3 {[%clk 0:04:50.3]} 6... g5 {[%clk 0:04:47.3]} 7.
Bg3 {[%clk 0:04:49.1]} 7... Qb6 {[%clk 0:04:46.4]} 8. Qc2 {[%clk 0:04:47.6]}
8... e6 {[%clk 0:04:38.5]} 9. Nbd2 {[%clk 0:04:46.7]} 9... a5 {[%clk 0:04:35.3]}
10. a4 {[%clk 0:04:45.1]} 10... c4 {[%clk 0:04:33.4]} 11. b3 {[%clk 0:04:41.1]}
11... cxb3 {[%clk 0:04:23.2]} 12. Nxb3 {[%clk 0:04:40.4]} 12... Bd6 {[%clk
0:04:21.9]} 13. Bb5 {[%clk 0:04:39.1]} 13... Qc7 {[%clk 0:04:13.3]} 14. O-O
{[%clk 0:04:37.4]} 14... Ne4 {[%clk 0:04:05.6]} 15. Rfc1 {[%clk 0:04:34]} 15...
h5 {[%clk 0:04:03.5]} 16. c4 {[%clk 0:04:32.2]} 16... h4 {[%clk 0:04:02.1]} 17.
Bxd6 {[%clk 0:04:30.6]} 17... Qxd6 {[%clk 0:03:53.9]} 18. cxd5 {[%clk
0:04:29.9]} 18... exd5 {[%clk 0:03:50.7]} 19. Qxc8+ {[%clk 0:04:28.8]} 19...
Rxc8 {[%clk 0:03:48.1]} 20. Rxc8+ {[%clk 0:04:27.7]} 20... Ke7 {[%clk
0:03:47.3]} 21. Rxh8 {[%clk 0:04:27.2]} 21... g4 {[%clk 0:03:32.7]} 22. Bxd7
{[%clk 0:04:12.9]} 22... gxf3 {[%clk 0:03:17.4]} 23. Bf5 {[%clk 0:04:11.4]}
23... fxg2 {[%clk 0:03:09.6]} 24. Bxe4 {[%clk 0:04:03.7]} 24... dxe4 {[%clk
0:03:04.6]} 25. Rxh4 {[%clk 0:03:58]} 25... Qb4 {[%clk 0:02:48.7]} 26. Rxe4+
{[%clk 0:03:42.6]} 26... Kf8 {[%clk 0:02:47.7]} 27. Nc5 {[%clk 0:02:39.7]} 27...
b5 {[%clk 0:02:40.8]} 28. axb5 {[%clk 0:02:35.6]} 28... Qxb5 {[%clk 0:02:39.2]}
29. Kxg2 {[%clk 0:02:34.6]} 29... Qc6 {[%clk 0:02:23.6]} 30. Kg3 {[%clk
0:02:08.2]} 30... Qg6+ {[%clk 0:02:21.3]} 31. Rg4 {[%clk 0:02:03.5]} 31... Qd6+
{[%clk 0:02:18.4]} 32. Kg2 {[%clk 0:01:53.5]} 32... Qd5+ {[%clk 0:02:16.9]} 33.
Kg1 {[%clk 0:01:52.9]} 33... f5 {[%clk 0:02:01.1]} 34. Rg5 {[%clk 0:01:51.8]}
34... Qf3 {[%clk 0:01:52]} 35. Rxa5 {[%clk 0:01:45.3]} 35... Qd1+ {[%clk
0:01:50.7]} 36. Kg2 {[%clk 0:01:43.6]} 36... f4 {[%clk 0:01:45.8]} 37. Ne6+
{[%clk 0:01:40.8]} 37... Ke7 {[%clk 0:01:44.1]} 38. Nxf4 {[%clk 0:01:39.7]} 1-0

[Event "Live Chess"]
[Site "Chess.com"]
[Date "2024.06.01"]
[Round "-"]
[White "GEMdzq"]
[Black "Ksenia_2013"]
[Result "1-0"]
[WhiteElo "2330"]
[BlackElo "768"]
[TimeControl "300"]
[EndTime "10:42:08 PDT"]
[Termination "GEMdzq won by checkmate"]

1. e4 {[%clk 0:04:57.4]} 1... e5 {[%clk 0:04:57]} 2. d4 {[%clk 0:04:56.2]} 2...
Nc6 {[%clk 0:04:52.7]} 3. c3 {[%clk 0:04:54.2]} 3... exd4 {[%clk 0:04:51.3]} 4.
Bc4 {[%clk 0:04:53.7]} 4... dxc3 {[%clk 0:04:49.3]} 5. Nf3 {[%clk 0:04:52.5]}
5... cxb2 {[%clk 0:04:48.3]} 6. Bxb2 {[%clk 0:04:52.4]} 6... Bc5 {[%clk
0:04:43.5]} 7. Bxf7+ {[%clk 0:04:49.3]} 7... Kxf7 {[%clk 0:04:41.2]} 8. Qd5+
{[%clk 0:04:48.5]} 8... Kf8 {[%clk 0:04:36.4]} 9. Qxc5+ {[%clk 0:04:47.6]} 9...
Nce7 {[%clk 0:04:34.4]} 10. Qg5 {[%clk 0:04:41.2]} 10... Qe8 {[%clk 0:04:26.7]}
11. Qxg7# {[%clk 0:04:34.3]} 1-0

[Event "Live Chess"]
[Site "Chess.com"]
[Date "2024.06.01"]
[Round "-"]
[White "seasidecastle27"]
[Black "KeithArkell"]
[Result "0-1"]
[WhiteElo "1950"]
[BlackElo "2515"]
[TimeControl "300"]
[EndTime "10:42:13 PDT"]
[Termination "KeithArkell won by resignation"]

1. d4 {[%clk 0:04:56.1]} 1... e6 {[%clk 0:04:58.9]} 2. Nf3 {[%clk 0:04:55.2]}
2... Nf6 {[%clk 0:04:52.3]} 3. Bf4 {[%clk 0:04:53.8]} 3... c5 {[%clk 0:04:51.4]}
4. e3 {[%clk 0:04:52]} 4... cxd4 {[%clk 0:04:50.4]} 5. exd4 {[%clk 0:04:50.7]}
5... Be7 {[%clk 0:04:46.5]} 6. c3 {[%clk 0:04:48.8]} 6... b6 {[%clk 0:04:46]} 7.
Nbd2 {[%clk 0:04:47.9]} 7... O-O {[%clk 0:04:45]} 8. Bd3 {[%clk 0:04:46.8]} 8...
Ba6 {[%clk 0:04:44.6]} 9. Qe2 {[%clk 0:04:44.4]} 9... Bxd3 {[%clk 0:04:43.3]}
10. Qxd3 {[%clk 0:04:43.4]} 10... d6 {[%clk 0:04:42.9]} 11. O-O {[%clk
0:04:41.1]} 11... Nbd7 {[%clk 0:04:42.5]} 12. Rfe1 {[%clk 0:04:38.6]} 12... a6
{[%clk 0:04:41.8]} 13. Rad1 {[%clk 0:04:34.8]} 13... b5 {[%clk 0:04:41]} 14. a3
{[%clk 0:04:32.8]} 14... Nb6 {[%clk 0:04:39.9]} 15. Ne4 {[%clk 0:04:27.4]} 15...
Nbd5 {[%clk 0:04:37.2]} 16. Bg5 {[%clk 0:04:24.1]} 16... h6 {[%clk 0:04:35.9]}
17. Bxf6 {[%clk 0:04:18.9]} 17... Nxf6 {[%clk 0:04:35.1]} 18. Nxf6+ {[%clk
0:04:17.1]} 18... Bxf6 {[%clk 0:04:35]} 19. Nd2 {[%clk 0:04:09]} 19... d5 {[%clk
0:04:33.6]} 20. Nf3 {[%clk 0:04:07.3]} 20... Rb8 {[%clk 0:04:31]} 21. Ne5 {[%clk
0:04:04.4]} 21... Bxe5 {[%clk 0:04:30.5]} 22. dxe5 {[%clk 0:04:03.1]} 22... a5
{[%clk 0:04:29.9]} 23. Qe3 {[%clk 0:03:57.8]} 23... Qc7 {[%clk 0:04:28.8]} 24.
Rd4 {[%clk 0:03:54.9]} 24... b4 {[%clk 0:04:25.7]} 25. axb4 {[%clk 0:03:52.8]}
25... axb4 {[%clk 0:04:25.1]} 26. Rxb4 {[%clk 0:03:46.7]} 26... Rxb4 {[%clk
0:04:23.6]} 27. cxb4 {[%clk 0:03:45.3]} 27... Qc4 {[%clk 0:04:19.8]} 28. Qc5
{[%clk 0:03:40.9]} 28... Rc8 {[%clk 0:04:18.6]} 29. Qxc4 {[%clk 0:03:32.6]}
29... Rxc4 {[%clk 0:04:18.5]} 30. g3 {[%clk 0:03:24.5]} 30... Rxb4 {[%clk
0:04:17]} 31. Re2 {[%clk 0:03:23]} 31... g5 {[%clk 0:04:15.6]} 32. h3 {[%clk
0:03:18.7]} 32... h5 {[%clk 0:04:14.2]} 33. Kg2 {[%clk 0:03:17.4]} 33... Kg7
{[%clk 0:04:13.6]} 34. f3 {[%clk 0:03:11.3]} 34... h4 {[%clk 0:04:12.2]} 35. g4
{[%clk 0:03:04]} 35... Kg6 {[%clk 0:04:10.6]} 36. Kf2 {[%clk 0:03:00.8]} 36...
Rc4 {[%clk 0:04:08.7]} 37. Rd2 {[%clk 0:02:51.7]} 37... Rc1 {[%clk 0:04:07.1]}
38. Re2 {[%clk 0:02:40.2]} 38... Rh1 {[%clk 0:04:05.4]} 39. Kg2 {[%clk
0:02:38.6]} 39... Rb1 {[%clk 0:04:03.8]} 40. Rc2 {[%clk 0:02:36.8]} 40... Re1
{[%clk 0:04:02.6]} 41. b4 {[%clk 0:02:30.3]} 41... Rb1 {[%clk 0:04:01.5]} 42. f4
{[%clk 0:02:15.6]} 42... Rxb4 {[%clk 0:03:56.8]} 43. fxg5 {[%clk 0:02:11]} 43...
Kxg5 {[%clk 0:03:56.2]} 44. Rf2 {[%clk 0:02:07.6]} 44... Kg6 {[%clk 0:03:53]}
45. Rf6+ {[%clk 0:02:05.4]} 45... Kg7 {[%clk 0:03:52.3]} 46. Rh6 {[%clk
0:02:01.5]} 46... Kxh6 {[%clk 0:03:50.4]} 0-1